lending/lending_fUSD_20240202
["ID","MTS","AMOUNT","RATE_DAILY","PERIOD"]
[313162586,1706837432560,-538592.07634385,0.0002257,2]
[313162587,1706837432570,-1146.852,0.0002257,2]
[313162588,1706837432580,-170.88369881,0.00022613,2]
[313162589,1706837432590,-170.88369881,0.00022684,2]
[313162590,1706837432599,-2089.59,0.00022684,2]
[313162591,1706837432609,-100000.0,0.00022697,2]
[313162592,1706837432618,-5377.1153,0.00022697,2]
[313162593,1706837432628,-272.0,0.00022697,2]
[313162594,1706837432637,-1000.28,0.00022697,2]
[313162595,1706837432647,-663.17595373,0.00022699,2]
[313162596,1706837432657,-170.88369881,0.00022755,2]
[313162597,1706837432667,-10382.87884437,0.0002277,2]
[313162598,1706837432677,-164.64,0.00022792,2]
[313162599,1706837432686,-279.23419242,0.00022796,2]
[313162600,1706837432695,-15557.38751674,0.000228,2]
[313162601,1706837432710,-137490.74148326,0.000228,2]
[313162602,1706837432722,-170.88369881,0.00022827,2]
[313162603,1706837432731,-170.88369881,0.00022898,2]
[313162604,1706837432741,-1147.9939,0.00022899,2]
[313162605,1706837432750,-459.3322,0.000229,2]
[313162606,1706837432759,-945.1059,0.000229,2]
[313162607,1706837432768,-4376.3245,0.000229,2]
[313162608,1706837432778,-152.98967384,0.000229,2]
[313162609,1706837432788,-283.84866208,0.000229,2]
[313162610,1706837432797,-845.16592533,0.000229,2]
[313162611,1706837432808,-197.08094035,0.000229,2]
[313162612,1706837432817,-155.0,0.00022996,2]
[313162613,1706837432827,-233.38095613,0.00022997,2]
[313162614,1706837432836,-474.20164571,0.00022998,2]
[313162615,1706837432846,-155.0,0.00022998,2]
[313162616,1706837432856,-229.82949063,0.00022998,2]
[313162617,1706837432866,-7118.5597209,0.00022998,5]
[313162618,1706837432876,-387.97709514,0.00022998,2]
[313162619,1706837432886,-172.09680919,0.00022998,2]
[313162620,1706837432897,-164.23836392,0.00022998,2]
[313162621,1706837432907,-293.83460367,0.00022998,2]
[313162622,1706837432916,-184.14614466,0.00022998,2]
[313162623,1706837432926,-767.12856577,0.00022998,2]
[313162624,1706837432935,-466.10817728,0.00022998,2]
[313162625,1706837432945,-289.00257985,0.00022998,2]
[313162626,1706837432956,-157.8636399,0.00022998,2]
[313162627,1706837432965,-1196.6199505,0.00022998,2]
[313162628,1706837432974,-155.0,0.00022998,2]
[313162629,1706837432984,-698.71506355,0.00022998,2]
[313162630,1706837432992,-209.89203288,0.00022998,2]
[313162631,1706837433001,-203.56448077,0.00022998,2]
[313162632,1706837433010,-805.42629681,0.00022998,2]
[313162633,1706837433020,-155.21482752,0.00022998,2]
[313162634,1706837433029,-155.0,0.00022998,2]
[313162635,1706837433038,-160.11045763,0.00022998,2]
[313162636,1706837433048,-156.12910818,0.00022998,2]
[313162637,1706837433059,-414.84084652,0.00022999,2]
[313162638,1706837433069,-191.36685827,0.00022999,2]
[313162639,1706837433078,-4257.25464273,0.00022999,2]
[313162640,1706837433087,-677.38240843,0.00022999,2]
[313162641,1706837433097,-904.10183854,0.00022999,2]
[313162642,1706837433107,-500.0,0.00022999,2]
[313162643,1706837433117,-500.0,0.00022999,2]
[313162644,1706837433126,-500.0,0.00022999,2]
[313162645,1706837433135,-420.37352224,0.00022999,2]
[313162646,1706837433145,-398.99160817,0.00022999,2]
[313162647,1706837433155,-500.0,0.00022999,2]
[313162648,1706837433165,-797683.02489299,0.00023,2]
[313162649,1706837433177,-688.9343858,0.00023,2]
[313162650,1706837433189,-1498.94636376,0.00023,2]
[313162651,1706837433205,-472.96270286,0.00022532,2]
[313162652,1706837433216,-391.9015,0.00022532,2]
[313162653,1706837433227,-1261.70648196,0.00022532,2]
[313162656,1706837438253,-8406.1,0.00022532,2]
[313162657,1706837438420,-31442.49470432,0.00022532,2]
[313162658,1706837438430,-429.55853484,0.000227,2]
[313162659,1706837438441,-3473189.02247201,0.00023,2]
[313162660,1706837438450,-982737.5367457,0.00023,2]
[313162661,1706837438462,-514.6869,0.00023,2]
[313162664,1706837440655,-281.58631847,0.00023,2]
[313162665,1706837440689,-257.56049382,0.00023,2]
[313162666,1706837440702,-260.03349095,0.00023,2]
[313162667,1706837440779,-353.89329981,0.00023,2]
[313162668,1706837440790,-424.5191321,0.00023,2]
[313162669,1706837440817,-1488.91443361,0.00023,2]
[313162670,1706837440829,-568.52842727,0.00023,2]
[313162671,1706837440840,-342.6806139,0.00023,2]
[313162672,1706837440851,-895.4671972,0.00023,2]
[313162673,1706837440870,-4499.13545057,0.00023,2]
[313162674,1706837440974,-670.00995903,0.00023,2]
[313162675,1706837440989,-1259.70004097,0.00023,2]
[313162676,1706837441011,-991.93470308,0.00023,2]
[313162758,1706837443346,-1812.88791251,0.00022999,2]
[313162761,1706837443355,-40.12069729,0.00023,2]
[313162763,1706837443368,-3294.66483035,0.00023,2]
[313162765,1706837443379,-31013.60850922,0.00023,2]
[313162767,1706837443391,-960.94494096,0.00023,2]
[313162774,1706837443475,-4178.25690061,0.00023,2]
[313162896,1706837446244,-825.12309966,0.00022999,2]
[313162897,1706837446389,-3091.10603002,0.00022999,2]
[313162898,1706837446399,-4225.3713997,0.00023,2]
[313162899,1706837446410,-709.22288882,0.00023,2]
[313162900,1706837446425,-458999.10142867,0.00023,2]
[313162901,1706837446435,-2000.0,0.00023,2]
[313162902,1706837446445,-200.0,0.00023,2]
[313162903,1706837446458,-2000.0,0.00023,2]
[313162904,1706837446468,-200.0,0.00023,2]
[313162905,1706837446478,-150.0,0.00023,2]
[313162906,1706837446488,-347.73672192,0.0002313,2]
[313162907,1706837446497,-156.31,0.00023183,2]
[313162908,1706837446507,-1205.358259,0.00023191,2]
[313162909,1706837446517,-156.99,0.00023193,2]
[313162910,1706837446527,-170.89664658,0.00023206,2]
[313162911,1706837446537,-248.41,0.00023207,2]
[313162912,1706837446547,-2000.0,0.0002323,2]
[313162913,1706837446557,-200.0,0.0002323,2]
[313162914,1706837446569,-200.0,0.0002323,2]
[313162915,1706837446579,-2000.0,0.00023462,2]
[313162917,1706837446589,-200.0,0.00023462,2]
[313162919,1706837446599,-164.56,0.00023497,2]
[313162921,1706837446615,-2000.0,0.00023697,2]
[313162923,1706837446627,-200.0,0.00023697,2]
[313162925,1706837446646,-1883.99040624,0.00023934,2]
[313162927,1706837446655,-200.0,0.00023934,2]
[313162929,1706837446665,-167.66,0.00023978,2]
[313162931,1706837446675,-263.94731272,0.000241,2]
[313162932,1706837446684,-167.0,0.00024297,2]
[313162933,1706837446694,-176.15015525,0.000243,2]
[313162934,1706837446703,-369.89,0.00024384,2]
[313162935,1706837446712,-2285.44,0.00024384,2]
[313162936,1706837446722,-248.41,0.00024577,2]
[313162937,1706837446731,-328.0,0.00024627,2]
[313162938,1706837446740,-150.0,0.0002464,2]
[313162939,1706837446750,-257.09013407,0.0002464,2]
[313162940,1706837446759,-250.0,0.00024658,2]
[313162941,1706837446770,-840.0,0.00024998,2]
[313162942,1706837446780,-1905.32780822,0.00025,2]
[313162943,1706837446790,-1588.56278984,0.00025,2]
[313162944,1706837446799,-535.64853932,0.00025,2]
[313162945,1706837446813,-450.0,0.00025,3]
[313162946,1706837446823,-164.56,0.00025141,2]
[313162947,1706837446832,-1968.95979817,0.000255,2]
[313162948,1706837446847,-3457.04020183,0.000255,2]
[313162949,1706837446856,-2941.0,0.000256,2]
[313162950,1706837446866,-150.0,0.00026079,2]
[313162951,1706837446876,-323.84015861,0.00026081,2]
[313162952,1706837446886,-167.66,0.00026158,2]
[313162953,1706837446896,-156.99,0.00026501,2]
[313162954,1706837446905,-164.56,0.00026785,2]
[313162955,1706837446915,-328.0,0.00027364,2]
[313162956,1706837446924,-211.21,0.00027397,2]
[313162957,1706837446934,-211.3,0.00027397,2]
[313162958,1706837446944,-11159.74,0.00027397,2]
[313162959,1706837446957,-510.71466582,0.00027454,2]
[313162960,1706837446966,-200.0,0.00027454,2]
[313162961,1706837446976,-211.21,0.00027541,2]
[313162962,1706837446985,-11159.74,0.00027556,2]
[313162963,1706837446996,-211.21,0.00027686,2]
[313162964,1706837447005,-10431.67821492,0.00027714,2]
[313162965,1706837447017,-390.17877113,0.00027714,2]
[313162966,1706837460299,1287.332,0.0002247,2]
[313162967,1706837481675,1013.7213,0.0002247,2]
[313162968,1706837485436,111458.009,0.0002247,2]
[313162969,1706837504209,277.88844843,0.00022,2]
[313162971,1706837576629,1973.1185,0.0002247,2]
[313162972,1706837792027,159.74,0.00019648,2]
[313162973,1706838067652,325.75685802,0.0001955,30]
[313162994,1706838633513,-155.50464982,0.00022532,2]
[313162995,1706838633523,-166.94301146,0.00022569,5]
[313162996,1706838633574,-840.46139142,0.00022569,5]
[313162997,1706838633587,-165.82600533,0.00022856,2]
[313162998,1706838633596,-57.93277547,0.00023,2]
[313162999,1706838633608,-94.36722453,0.00023,2]
[313163000,1706838633618,-150.0,0.00024999,2]
[313163001,1706838633627,-200.0,0.00025,2]
[313163002,1706838633637,-323.93773457,0.00025,2]
[313163003,1706838633646,-510.86722943,0.00025,2]
[313163004,1706838633656,-538.06961848,0.00025,2]
[313163005,1706838633667,-1905.81852245,0.00025,2]
[313163006,1706838633676,-1588.97256459,0.00025399,2]
[313163007,1706838633686,-5463.0,0.000254,2]
[313163008,1706838633695,-2452.31816878,0.000254,2]
[313163009,1706838633707,-489.68183122,0.000254,2]
[313163010,1706838633717,-1904.53,0.00026657,2]
[313163011,1706838633726,-172.11,0.00026657,2]
[313163012,1706838633736,-621.64,0.00026699,2]
[313163013,1706838633745,-173.49,0.00026725,2]
[313163014,1706838633755,-250.0,0.00026739,2]
[313163015,1706838633765,-784.9,0.00026739,2]
[313163016,1706838633774,-868.8,0.00026758,2]
[313163017,1706838633783,-1312.04,0.00026758,2]
[313163018,1706838633793,-2000.0,0.00026776,2]
[313163019,1706838633803,-150.0,0.00026826,2]
[313163020,1706838633812,-250.0,0.00026849,2]
[313163021,1706838633823,-164.0,0.00026883,2]
[313163022,1706838633833,-28745.96,0.00026907,2]
[313163023,1706838633842,-388.75,0.00026955,2]
[313163024,1706838633852,-181.06,0.00026998,2]
[313163025,1706838633862,-768.53,0.00027015,2]
[313163026,1706838633871,-152.22,0.00027397,2]
[313163027,1706838633880,-4589.12816878,0.00027397,2]
[313163028,1706838633892,-1277.74308169,0.00027397,2]
[313163029,1706838633904,-5270.54874953,0.00027397,2]
[313163030,1706838633917,-152.87457283,0.00027492,2]
[313163031,1706838633926,-2891.48087207,0.00027556,2]
[313163032,1706838633937,-3214.45266168,0.00027556,2]
[313163033,1706838633949,-2107.65555,0.00027556,2]
[313163034,1706838633960,-350.0,0.00027556,2]
[313163035,1706838633971,-2261.86346022,0.00027556,2]
[313163036,1706838633983,-311.96745603,0.00027556,2]
[313163037,1706838633992,-110.8820545,0.00027713,2]
[313163038,1706838634004,-6521.99891515,0.00027713,2]
[313163039,1706838634014,-11137.42,0.00027714,2]
[313163040,1706838634023,-2000.0,0.00027714,2]
[313163041,1706838634032,-200.0,0.00027714,2]
[313163042,1706838634042,-1912.92869619,0.00027714,2]
[313163043,1706838634051,-200.0,0.00027714,2]
[313163044,1706838634060,-687.353,0.00027772,2]
[313163045,1706838634069,-211.21,0.0002783,2]
[313163046,1706838634079,-169.44,0.00027849,2]
[313163047,1706838634088,-499.50753691,0.00027871,2]
[313163048,1706838634097,-11137.42,0.00027872,2]
[313163049,1706838634106,-152.22,0.00027945,2]
[313163050,1706838634116,-211.21,0.00027974,2]
[313163051,1706838634125,-2000.0,0.00027991,2]
[313163052,1706838634135,-200.0,0.00027991,2]
[313163053,1706838634144,-200.0,0.00027991,2]
[313163054,1706838634154,-691.09338038,0.00028,2]
[313163055,1706838634163,-11137.42,0.0002803,2]
[313163056,1706838634173,-211.21,0.00028118,2]
[313163057,1706838634182,-248.99,0.00028144,2]
[313163058,1706838634191,-1205.358259,0.00028166,2]
[313163059,1706838634200,-170.89664658,0.00028176,2]
[313163060,1706838634210,-4809.38619393,0.00028189,2]
[313163061,1706838634222,-979.38,0.00028189,2]
[313163062,1706838634233,-279.23454538,0.00028189,2]
[313163063,1706838634245,-500.63970618,0.00028189,2]
[313163064,1706838634265,-866.30438943,0.00028189,2]
[313163065,1706838634278,-450.25,0.00028189,2]
[313163066,1706838634293,-1124.72457423,0.00028189,2]
[313163067,1706838634305,-1336.68287156,0.00028189,2]
[313163068,1706838634316,-390.72,0.00028189,2]
[313163070,1706838634328,-400.09771929,0.00028189,2]
[313163071,1706838634337,-20.91390749,0.00028262,2]
[313163073,1706838634349,-190.29609251,0.00028262,2]
[313163074,1706838634357,-454.51868568,0.00028271,2]
[313163079,1706838638300,-564.04558906,0.00028271,2]
[313163081,1706838638313,-419.83,0.00028271,2]
[313163083,1706838638327,-561.60572526,0.00028271,2]
[313163085,1706838638336,-200.0,0.00028271,2]
[313163087,1706838638346,-157.41661319,0.00028303,2]
[313163090,1706838638367,-1848.06928681,0.00028303,2]
[313163092,1706838638378,-32.4119498,0.00028347,2]
[313163094,1706838638390,-1005.30468449,0.00028347,2]
[313163099,1706838638430,-5189.94117156,0.00028347,2]
[313163104,1706838638548,-4909.76219415,0.00028347,2]
[313163105,1706838638557,-173.49,0.00028369,2]
[313163106,1706838638567,-165.24053075,0.00028403,4]
[313163107,1706838638577,-1000.0,0.00028403,2]
[313163108,1706838638586,-14626.34218869,0.00028403,2]
[313163109,1706838638608,-521.4827576,0.00028403,2]
[313163110,1706838638620,-2095.768675,0.00028403,2]
[313163111,1706838638631,-645.56906919,0.00028403,2]
[313163114,1706838641127,-159.31,0.00027321,2]
[313163115,1706838641137,-14255.08264975,0.00028403,2]
[313163116,1706838641844,-7643.33494766,0.00028403,2]
[313163117,1706838641856,-8947.21879473,0.00028403,2]
[313163118,1706838641868,-8943.78386462,0.00028403,2]
[313163119,1706838641880,-8877.54866152,0.00028403,2]
[313163120,1706838641892,-7209.16939124,0.00028403,2]
[313163121,1706838641901,-211.21,0.00028407,2]
[313163122,1706838641910,-152.22,0.00028493,2]
[313163124,1706838641920,-1371.24084365,0.00028503,2]
[313163133,1706838643356,-2290.06775574,0.00028503,2]
[313163134,1706838643662,-3948.4979296,0.00028503,2]
[313163135,1706838643674,-5902.48012413,0.00028503,2]
[313163148,1706838646418,-171.32329977,0.00028402,2]
[313163150,1706838646429,-524.37603537,0.00028503,2]
[313163152,1706838646441,-405.17635431,0.00028503,2]
[313163153,1706838646453,-9410.46485975,0.00028503,2]
[313163154,1706838646536,-4458.67740852,0.00028503,2]
[313163155,1706838646550,-41995.89324118,0.00028503,2]
[313163156,1706838646657,-4252.75162669,0.00028503,2]
[313163232,1706839318730,150.0,0.00022,2]
[313163233,1706839332979,176.85,0.00022,2]
[313163234,1706839357847,151.98787737,0.00022,2]
[313163235,1706839534228,158.8,0.00021409,2]
[313163236,1706839754034,44904.0,0.00022316,2]
[313163237,1706839797765,153.25,0.0002216,2]
[313163243,1706839831500,-1045.03306234,0.00022547,2]
[313163245,1706839831512,-176.85,0.00022548,2]
[313163248,1706839831526,-287.78,0.00022818,2]
[313163249,1706839831537,-2000.0,0.00022844,2]
[313163250,1706839831547,-287.78,0.00022881,2]
[313163251,1706839831558,-390.0292,0.00022899,2]
[313163252,1706839831568,-843.2453,0.00022899,2]
[313163253,1706839831580,-1158.6012,0.00022899,2]
[313163254,1706839831592,-165.82600531,0.00022899,2]
[313163255,1706839831602,-190.66499286,0.00022899,2]
[313163256,1706839831613,-190.66499285,0.000229,2]
[313163257,1706839831627,-165.82600531,0.000229,2]
[313163258,1706839831638,-5000.0,0.000229,2]
[313163259,1706839831649,-190.66499285,0.000229,2]
[313163260,1706839831660,-618.37301054,0.000229,2]
[313163261,1706839831671,-567.30350276,0.000229,2]
[313163262,1706839831682,-178.32637013,0.000229,2]
[313163263,1706839831692,-287.78,0.00022943,2]
[313163264,1706839831705,-184.23272446,0.00022989,2]
[313163265,1706839831715,-184.23272446,0.0002299,2]
[313163266,1706839831727,-4534.36965629,0.00022997,2]
[313163267,1706839831739,-258.59238133,0.00022997,2]
[313163268,1706839831749,-8535.1670637,0.00022998,2]
[313163269,1706839831760,-525.45795432,0.00022999,2]
[313163270,1706839831771,-922.62,0.00022999,2]
[313163271,1706839831781,-67438.92429868,0.00022999,2]
[313163272,1706839831795,-817.67329241,0.00022999,2]
[313163273,1706839831808,-614.479575,0.00022999,2]
[313163274,1706839831820,-311.06238185,0.00022999,2]
[313163275,1706839831833,-610.44814184,0.00022999,2]
[313163277,1706839831845,-6429.73131915,0.00022999,2]
[313163280,1706839831857,-5266.08474141,0.00022999,2]
[313163282,1706839831870,-1014.38430213,0.00022999,2]
[313163284,1706839831882,-318.4195,0.00022999,2]
[313163287,1706839831894,-56627.6674656,0.00022999,2]
[313163289,1706839831906,-10254.99999999,0.00022999,2]
[313163291,1706839831918,-533.54363831,0.00022999,2]
[313163293,1706839831931,-825.83907774,0.00022999,2]
[313163294,1706839831943,-2271.73824207,0.00022999,2]
[313163295,1706839831958,-654.59890069,0.00022999,2]
[313163296,1706839831971,-457109.08600688,0.00022999,2]
[313163297,1706839831984,-1768.42882103,0.00022999,2]
[313163298,1706839837752,-11232.53,0.00022943,2]
[313163299,1706839837762,-3198.68952221,0.00022999,2]
[313163300,1706839837773,-1811.90215072,0.00022999,2]
[313163301,1706839837785,-4430.19597927,0.00022999,2]
[313163302,1706839837797,-9653.42588603,0.00022999,2]
[313163303,1706839837811,-39462.98763074,0.00022999,2]
[313163304,1706839837822,-112235.00672653,0.00022999,2]
[313163305,1706839837834,-468.50164004,0.00022999,2]
[313163306,1706839837846,-484.46603747,0.00022999,2]
[313163307,1706839837855,-174.02841812,0.00022999,2]
[313163308,1706839837864,-245.51099211,0.00022999,2]
[313163309,1706839837874,-834.79,0.00022999,2]
[313163310,1706839837883,-17183.4291829,0.00023,2]
[313163311,1706839837895,-734.70866164,0.00023,2]
[313163312,1706839837911,-968.587,0.00023,2]
[313163313,1706839837922,-271.708502,0.00023,2]
[313163314,1706839837934,-1585.2893197,0.00023,2]
[313163315,1706839837965,-5097.31938343,0.00023,2]
[313163328,1706839840149,-4068.95391027,0.00023,2]
[313163329,1706839840162,-522.56356493,0.00023,2]
[313163330,1706839840800,-4292.4,0.00023,2]
[313163331,1706839840966,-1088.41660771,0.00023,2]
[313163332,1706839841026,-526.34601085,0.00023,2]
[313163372,1706839842800,-1777.89108183,0.00023,2]
[313163373,1706839842859,-533.0,0.00023,2]
[313163381,1706839845650,-1049.24358299,0.00022999,2]
[313163382,1706839845660,-19801.82060695,0.00023,2]
[313163383,1706839845711,-10701.03857726,0.00023,2]
[313163384,1706839845723,-487000.0,0.00023,2]
[313163385,1706839845734,-41995.89324118,0.00023,2]
[313163386,1706839962564,176.85,0.00022,2]
[313163388,1706840029474,250.0,0.00022125,2]
[313163389,1706840053642,176.28,0.00020911,2]
[313163390,1706840177915,2000.0,0.00022043,2]
[313163391,1706840456308,280.35,0.00022033,2]
[313163392,1706840462554,153.25,0.00022045,2]
[313163393,1706840530591,151.3433714,0.00022,2]
[313163394,1706840532719,172.11,0.00022033,2]
[313163395,1706840551399,167.46,0.00020136,2]
[313163396,1706840551524,167.46,0.000224,2]
[313163397,1706840566922,162.05,0.00022033,2]
[313163398,1706840600966,176.85,0.00022,2]
[313163399,1706840650924,304.96,0.00022062,2]
[313163401,1706840735921,322.92,0.00022211,2]
[313163402,1706840736122,322.92,0.00022272,2]
[313163403,1706840736345,322.92,0.00022332,2]
[313163404,1706840736950,322.92,0.00022393,2]
[313163405,1706840736992,322.92,0.00022454,2]
[313163406,1706840738240,442.19,0.00022288,2]
[313163407,1706840898779,-388.21422797,0.00022514,2]
[313163408,1706840898802,-322.92,0.00022515,2]
[313163409,1706840898825,-185.05910651,0.00022548,2]
[313163410,1706840898847,-322.92,0.00022576,2]
[313163411,1706840898871,-322.92,0.00022637,2]
[313163412,1706840898894,-322.92,0.00022698,2]
[313163413,1706840898917,-322.92,0.00022759,2]
[313163414,1706840898937,-322.92,0.0002282,2]
[313163415,1706840898962,-322.92,0.00022881,2]
[313163416,1706840898982,-412.09,0.00022886,2]
[313163417,1706840899001,-150.99,0.00022886,2]
[313163418,1706840899021,-299.99,0.00022886,7]
[313163419,1706840899039,-933.49387742,0.00022897,2]
[313163420,1706840899058,-9999.99,0.00022897,2]
[313163421,1706840899078,-174.36,0.00022897,2]
[313163422,1706840899100,-933.49387741,0.00022898,2]
[313163423,1706840899120,-1067.67975817,0.00022899,2]
[313163424,1706840899143,-162.15127323,0.000229,2]
[313163425,1706840899165,-405.25586882,0.000229,2]
[313163426,1706840899185,-405.2558688,0.00022901,2]
[313163427,1706840899206,-198.04733739,0.00022902,2]
[313163428,1706840899226,-405.2558688,0.00022902,2]
[313163429,1706840899247,-322.92,0.00022942,2]
[313163430,1706840899266,-173.98858838,0.00022987,2]
[313163431,1706840899286,-173.98858838,0.0002299,2]
[313163432,1706840899306,-330.06137757,0.00022995,2]
[313163433,1706840899326,-831.76136269,0.00022996,2]
[313163434,1706840899346,-22781.40194882,0.00022997,2]
[313163435,1706840899368,-37304.11106964,0.00022997,2]
[313163436,1706841021900,150.71,0.00020343,2]
[313163475,1706841031689,-150.71,0.00022607,2]
[313163478,1706841031699,-171.96197771,0.00022895,2]
[313163480,1706841031708,-157.90239671,0.00022896,2]
[313163482,1706841031717,-157.90239666,0.00022897,2]
[313163485,1706841031726,-157.90239666,0.00022897,2]
[313163488,1706841031735,-157.90239666,0.00022898,2]
[313163489,1706841031744,-157.90239666,0.00022898,2]
[313163491,1706841031753,-157.90239666,0.00022899,2]
[313163493,1706841031762,-157.90239666,0.00022899,2]
[313163495,1706841031771,-383.5678,0.000229,2]
[313163497,1706841031780,-567.76690747,0.000229,2]
[313163499,1706841031789,-198.0473374,0.000229,2]
[313163500,1706841031798,-157.90239666,0.000229,2]
[313163501,1706841031807,-567.76690746,0.00022901,2]
[313163502,1706841031816,-567.76690746,0.00022902,2]
[313163503,1706841031825,-198.04733739,0.00022902,2]
[313163504,1706841031834,-383.22787543,0.00022995,2]
[313163505,1706841031844,-232742.92832743,0.00022997,2]
[313163506,1706841031856,-350.00592856,0.00022997,2]
[313163507,1706841031868,-376.86,0.00022997,2]
[313163508,1706841031879,-430.67499105,0.00022997,2]
[313163509,1706841031890,-2034.25707462,0.00022997,2]
[313163510,1706841031901,-645.96038553,0.00022997,2]
[313163511,1706841031912,-497.48514,0.00022997,2]
[313163512,1706841031923,-10882.01057348,0.00022997,2]
[313163513,1706841031937,-1886.34881642,0.00022997,2]
[313163514,1706841031948,-1788.36312502,0.00022997,2]
[313163515,1706841031963,-1920.68543303,0.00022997,2]
[313163516,1706841031990,-2247.56244449,0.00022997,2]
[313163517,1706841032002,-1026.39824093,0.00022997,2]
[313163518,1706841032013,-652.78451772,0.00022997,2]
[313163519,1706841032025,-463048.24461812,0.00022997,2]
[313163521,1706841032035,-14753.40665486,0.00022998,2]
[313163523,1706841032045,-701.38557768,0.00022998,2]
[313163525,1706841032054,-5263.56270586,0.00022998,2]
[313163527,1706841032062,-484.1158976,0.00022998,2]
[313163529,1706841032073,-1286.61769883,0.00022998,2]
[313163531,1706841032082,-358.08722414,0.00022998,2]
[313163534,1706841032091,-509.06823694,0.00022999,2]
[313163537,1706841032100,-157.91859783,0.00022999,2]
[313163539,1706841032109,-25894.82057023,0.00022999,2]
[313163542,1706841032118,-874.96635993,0.00022999,2]
[313163544,1706841032128,-2893.40303945,0.00022999,2]
[313163549,1706841032137,-221.62681004,0.00022999,2]
[313163552,1706841032146,-169.92559682,0.00022999,2]
[313163554,1706841032156,-376.35456232,0.00022999,2]
[313163556,1706841032166,-300.0,0.00022999,2]
[313163558,1706841032175,-300.0,0.00022999,2]
[313163559,1706841032184,-300.0,0.00022999,2]
[313163561,1706841032193,-300.0,0.00022999,2]
[313163562,1706841032202,-300.0,0.00022999,2]
[313163564,1706841032211,-300.0,0.00022999,2]
[313163566,1706841032221,-300.0,0.00022999,2]
[313163568,1706841032230,-305.30270407,0.00022999,2]
[313163569,1706841032239,-286130.54264114,0.00023,2]
[313163571,1706841032251,-3601.44535342,0.00023,2]
[313163573,1706841032263,-54101.70467046,0.00023,2]
[313163575,1706841032274,-504.021,0.00023,2]
[313163577,1706841032285,-1531.9762125,0.00023,2]
[313163579,1706841032296,-1179.6499085,0.00023,2]
[313163581,1706841032311,-6933.7835384,0.00023,2]
[313163583,1706841032323,-298.82689054,0.00023,2]
[313163585,1706841032338,-4099.00772528,0.00023,2]
[313163586,1706841032349,-1122.1684524,0.00023,2]
[313163588,1706841032362,-844.99739025,0.00023,2]
[313163590,1706841032374,-1001.29826899,0.00023,2]
[313163594,1706841038124,-346.34004767,0.00023,2]
[313163595,1706841038179,-1062.63872965,0.00023,2]
[313163596,1706841038239,-4162225.29020656,0.00023,2]
[313163597,1706841038248,-293701.26901115,0.00023,2]
[313163598,1706841038354,-419.31007387,0.00023,2]
[313163599,1706841038412,-46674.6007676,0.00023,2]
[313163600,1706841038470,-3923.54313859,0.00023,2]
[313163604,1706841041013,-10255.99702673,0.00023,2]
[313163605,1706841041151,-10753.70536149,0.00023,2]
[313163630,1706841043473,-493.7191384,0.00023,2]
[313163643,1706841043639,-550.0,0.00023,2]
[313163644,1706841043653,-80296.3035,0.00023,2]
[313163653,1706841045834,-5420.77647676,0.00023,2]
[313163654,1706841045911,-6070.51464648,0.00023,2]
[313163655,1706841045923,-1982.9641444,0.00023,2]
[313163656,1706841045967,-487000.0,0.00023,2]
[313163657,1706841045978,-41995.89324118,0.00023,2]
[313163658,1706841046024,-3888.99995391,0.00023,2]
[313163665,1706841233977,176.85,0.00022,2]
[313163666,1706841240021,500.0,0.00022,2]
[313163667,1706841282024,8670.89805879,0.0002,2]
[313163668,1706841304019,5780.59870586,0.0002,2]
[313163669,1706841322029,4817.16558822,0.0002,2]
[313163670,1706841322925,155.44,0.00021921,2]
[313163671,1706841340034,2509.74327146,0.0002,2]
[313163672,1706841358050,2509.74327146,0.0002,2]
[313163673,1706841366977,183.52,0.00021922,2]
[313163674,1706841374037,2509.74327146,0.0002,2]
[313163675,1706841396035,2509.74327146,0.0002,2]